Cogmind - Beta 17 @@@ ROGUE MODE // 2026.07.12 @ 22:50:49 Player: TheSkyeDoctor Result: Destroyed by S-27 Virus with Autogun Performance ------------- Evolutions (3) 1500 Regions Visited (8) 1600 Robots Destroyed (54) 270 Value Destroyed (1286) 1286 Prototype IDs (23) 460 Alien Tech Used (0) 0 Bonus (274) 274 TOTAL SCORE: 5390 Bonus ------- Aligned with FarCom 300 Friendly Fire -26 Cogmind --------- Core Integrity 0/700 Matter 136/300 Energy 98/100 System Corruption 4% Temperature Cool (9) Movement Core (50) Location -7/Factory Parts ------- > --- POWER (1) -------- (None) > --- PROPULSION (4) --- (None) > --- UTILITY (4) ------ Advanced Targeting Computer > --- WEAPON (4) ------- (None) > --- INVENTORY (5) ---- Improved Light Armor Plating Peak State ------------ > --- POWER ------------ Light Nuclear Core > --- PROPULSION ------- Improved Carbon-fiber Leg Improved Titanium Leg Improved Titanium Leg Improved Titanium Leg > --- UTILITY ---------- Medium Storage Unit Improved Terrain Scanner Improved Terrain Scan Processor Hacking Suite > --- WEAPON ----------- Heavy Particle Cannon Gauss Rifle Flak Gun Hammer > --- INVENTORY -------- Improved Carbon-fiber Leg Improved Carbon-fiber Leg Improved Carbon-fiber Leg Scrap Suit Superbattery High-capacity Matter Pod Seismic Detector Advanced Targeting Computer Improved Light Armor Plating [Rating: 44] Favorites ----------- Power Light Ion Engine Engine Light Ion Engine Power Core Light Nuclear Core Propulsion Light Treads Treads Light Treads Leg Improved Titanium Leg Wheel Wheel Flight Unit Xenon Bombardment Thruster Utility Medium Storage Unit Device Seismic Detector Storage Medium Storage Unit Processor Advanced Targeting Computer Hackware Hacking Suite Protection Improved Light Armor Plating Weapon Assault Rifle Energy Gun EM Pulse Gun Energy Cannon Beam Cannon Ballistic Gun Assault Rifle Launcher Grenade Launcher Impact Weapon Hammer Build | -11 -10 -10 -10 -9 -8 -7 -7 -7 ------- Run | Yrd Mat Min Exi Min Mat Fac Was Fac Slots Evolved 6 | . . . . . 4 2 . . Power . | . . . . . . . . . Propulsion 2 | . . . . . . 2 . . Utility 2 | . . . . . 2 . . . Weapon 2 | . . . . . 2 . . . Parts Attached 37 | 7 6 3 . 1 6 7 . 7 Power 5 | 1 1 1 . . 1 . . 1 Engine 4 | 1 1 1 . . . . . 1 Core 1 | . . . . . 1 . . . Reactor . | . . . . . . . . . Propulsion 10 | 2 . 1 . . 2 3 . 2 Treads 2 | 2 . . . . . . . . Leg 6 | . . . . . 2 3 . 1 Wheel 1 | . . 1 . . . . . . Hover . | . . . . . . . . . Flight 1 | . . . . . . . . 1 Utility 11 | 2 3 . . 1 1 2 . 2 Device 3 | 1 . . . . . 1 . 1 Storage 3 | 1 2 . . . . . . . Processor 3 | . 1 . . . . 1 . 1 Hackware 1 | . . . . . 1 . . . Protection 1 | . . . . 1 . . . . Artifact . | . . . . . . . . . Weapon 11 | 2 2 1 . . 2 2 . 2 Energy Gun 1 | 1 . . . . . . . . Energy Cannon 2 | . 1 . . . . 1 . . Ballistic Gun 4 | 1 . . . . 2 1 . . Ballistic Cannon . | . . . . . . . . . Launcher 3 | . . 1 . . . . . 2 Special Weapon . | . . . . . . . . . Impact Weapon 1 | . 1 . . . . . . . Slashing Weapon . | . . . . . . . . . Piercing Weapon . | . . . . . . . . . Special Melee Weapon . | . . . . . . . . . Unidentified Prototypes . | . . . . . . . . . Parts Lost 24 | . 3 3 . . 4 . 5 9 Power 4 | . 1 1 . . 1 . . 1 Propulsion 7 | . 1 1 . . 1 . 2 2 Utility 3 | . 1 . . . . . 1 1 Weapon 10 | . . 1 . . 2 . 2 5 Highest Loss Streak 8 | . 1 1 . . 3 . 5 8 To Critical Strikes . | . . . . . . . . . Average Backups 6 | 2 7 8 8 8 6 8 7 1 Power . | . . . . . . . . . Propulsion . | . 1 . . . 1 2 2 . Utility 3 | . 3 4 5 5 4 6 5 1 Weapon 1 | . 1 3 3 3 . . . . Tool/Special . | . . . . . . . . . Unused Backups 6 | 1 . . 1 . . . 4 . Power . | . . . . . . . . . Propulsion 2 | . . . . . . . 2 . Utility 4 | 1 . . 1 . . . 2 . Weapon . | . . . . . . . . . Tool/Special . | . . . . . . . . . Average Slot Usage (%) 79 | . 83 80 71 71 87 99 71 55 Engine 10 | . 13 13 14 14 7 . . 4 Treads 9 | . 21 7 . . . . . . Leg 4 | . . . . . 12 29 21 5 Wheel 2 | . . 6 14 14 1 . . . Device 6 | . 3 10 14 10 8 7 5 6 Storage 10 | . 14 14 14 14 9 7 5 . Processor 1 | . 1 . . . . 5 5 6 Hackware 2 | . . . . . 9 7 7 6 Protection 1 | . . . . 3 9 1 . . Energy Gun 1 | . 1 . . . 7 5 . . Energy Cannon 4 | . 8 . . . . 1 5 7 Ballistic Gun 11 | . 14 13 . . 11 15 8 5 Launcher 3 | . . 7 14 14 1 . . 6 Impact Weapon 4 | . 4 7 . . 7 7 5 . Peak Build Rating 44 | 7 8 7 7 9 32 44 44 38 Average Rating 13 | 5 6 6 6 7 24 42 28 28 On Entrance 12 | . 7 6 6 7 9 32 44 4 Avg Prop Armor Cover (%) 1 | . . . . . . . . 1 Naked Turns . | . . . . . . . . . Heaviest Build 38 | 13 28 19 17 19 31 32 32 38 Greatest Support 80 | 40 40 20 10 10 40 80 78 18 Greatest Overweight (x) 6 | . 1 6 1 1 6 . 4 2 Average Overweight (x) . | . . . 1 1 . . . . Largest Inventory Capacity 15 | 8 15 10 10 10 10 10 10 5 Average Capacity 8 | 7 8 10 10 10 10 10 8 5 Most Carried 10 | 3 10 10 8 10 9 10 10 4 Average Carried 6 | 2 7 8 7 8 7 9 8 1 Final Capacity 10 | 8 10 10 10 10 10 10 5 5 Final Carried 10 | 3 10 8 8 10 9 10 5 1 Scrap Suit Usage (%) 10 | . . . . . . . . 87 Class Distribution -------------------- 73% | Mutant 9% | Skirmisher 7% | Scavenger-Skirmisher 6% | Assassin 3% | Scavenger-Mutant Dominant Class ---------------- Mutant | -10/Materials Mutant | -10/Mines Mutant | -10/Exiles Mutant | -9/Mines Scavenger-Skirmisher | -8/Materials Assassin | -7/Factory Assassin | -7/Waste Skirmisher | -7/Factory Resources | -11 -10 -10 -10 -9 -8 -7 -7 -7 ----------- Run | Yrd Mat Min Exi Min Mat Fac Was Fac Matter Collected 1180 | 321 377 111 . 19 219 . . 133 Remotely . | . . . . . . . . . Salvage Created 1513 | 154 546 65 . 19 453 . . 276 Parts 96 | 20 35 2 . 5 18 . . 16 Haulers Intercepted 2 | . 1 . . . . . . 1 Recyclers Shooed 1 | 1 . . . . . . . . Parts Field Recycled . | . . . . . . . . . Retrieved Matter . | . . . . . . . . . Parts Self-Destructed . | . . . . . . . . . Prevented . | . . . . . . . . . Parts Restored . | . . . . . . . . . Kills | -11 -10 -10 -10 -9 -8 -7 -7 -7 ------- Run | Yrd Mat Min Exi Min Mat Fac Was Fac Combat Hostiles Destroyed 45 | . 13 11 . 3 9 . . 9 Guns 10 | . 3 2 . . 5 . . . Cannons 15 | . 10 . . . . . . 5 AOE 18 | . . 9 . 3 2 . . 4 Classes Destroyed 11 | 2 6 2 . . 1 . . . Worker 3 | . 2 . . . . . . 1 Builder 1 | . . 1 . . . . . . Tunneler 5 | 5 . . . . . . . . Hauler 2 | . 1 . . . . . . 1 Recycler 1 | 1 . . . . . . . . Operator 1 | . 1 . . . . . . . Watcher 4 | . 3 . . . . . . 1 Swarmer 18 | . 6 3 . 3 . . . 6 Grunt 15 | . 7 . . . 7 . . 1 Sentry 4 | . . . . . 2 . . 2 Assembled 8 | . . 8 . . . . . . Best Kill Streak 7 | 2 5 5 . 3 7 . . 4 Combat Bots Only 7 | . 4 5 . 3 7 . . 3 Max Kills in Single Turn 4 | 1 2 4 . 2 2 . . 2 Gunslinging . | . . . . . . . . . Exploded 4 | . . 4 . 2 2 . . 1 Melee . | . . . . . . . . . Uniques/NPCs Destroyed . | . . . . . . . . . Combat | -11 -10 -10 -10 -9 -8 -7 -7 -7 -------- Run | Yrd Mat Min Exi Min Mat Fac Was Fac Hostile Shots Fired 345 | . 78 21 . 4 52 . 5 185 Missed 116 | . 23 9 . 2 17 . . 65 Hits 229 | . 55 12 . 2 35 . 5 120 Melee 10 | . . 4 . . . . 5 1 Projectile 219 | . 55 8 . 2 35 . . 119 Critical Strikes 6 | . . . . . 3 . 2 1 Damage Taken 3507 | 10 613 199 . 51 698 . 207 1729 Core 938 | . 87 48 . 38 52 . 132 581 Absorbed by Shields . | . . . . . . . . . Core Remaining (%) 73 | 100 . . . 30 90 . . . Volleys Fired 124 | 17 44 11 . 2 25 . . 25 Largest 4 | 2 2 2 . 1 3 . . 4 Hottest 198 | 60 80 50 . 30 100 . . 198 Shots Fired 241 | 34 83 19 . 2 48 . . 55 Gun 146 | 34 44 10 . . 47 . . 11 Cannon 73 | . 39 . . . 1 . . 33 Launcher 22 | . . 9 . 2 . . . 11 Special . | . . . . . . . . . Kinetic 104 | 17 44 10 . . 22 . . 11 Thermal 66 | . 39 . . . 1 . . 26 Explosive 22 | . . 9 . 2 . . . 11 Electromagnetic 49 | 17 . . . . 25 . . 7 Robot Hit Streak 8 | 8 8 2 . . 8 . . 8 Robot Miss Streak 5 | 3 3 3 . 2 4 . . 5 Penetration Max 1 | . . . . . 1 . . . Secondary Targets 3 | . . . . . 3 . . . Max Gunslinging Chain 1 | . . . . . 1 . . . Shots Hit Robots 147 | 19 55 6 . . 36 . . 31 Core Hits 90 | 7 23 20 . 3 15 . . 22 Critical Kills . | . . . . . . . . . Critical Parts Destroyed 5 | . 4 . . . 1 . . . Critical Strikes 6 | . 4 . . . 2 . . . Destroy 1 | . 1 . . . . . . . Corrupt 1 | . . . . . 1 . . . Smash 4 | . 3 . . . 1 . . . Melee Attacks 23 | . 10 . . . 6 7 . . Impact 23 | . 10 . . . 6 7 . . Slashing . | . . . . . . . . . Piercing . | . . . . . . . . . Sneak Attacks 6 | . 6 . . . . . . . Combat Hostiles . | . . . . . . . . . Follow-up Attacks . | . . . . . . . . . Damage Inflicted 4117 | 276 1081 699 . 162 773 . . 1126 Guns 1294 | 255 340 39 . . 554 . . 106 Cannons 915 | . 454 . . . 17 . . 444 Explosions 1581 | 21 . 660 . 162 163 . . 575 Melee 324 | . 285 . . . 39 . . . Ramming 3 | . 2 . . . . . . 1 Kinetic 934 | 121 340 39 . . 328 . . 106 Thermal 1059 | 21 454 . . . 180 . . 404 Explosive 1397 | . . 660 . 162 . . . 575 Electromagnetic 400 | 134 . . . . 226 . . 40 Impact 324 | . 285 . . . 39 . . . Slashing . | . . . . . . . . . Piercing . | . . . . . . . . . Highest Corruption 4 | . . 2 2 2 . . . 4 Average Corruption 2 | . . 2 2 2 . . . 3 Corruption Purged . | . . . . . . . . . Corruption Blocked . | . . . . . . . . . Effects 9 | . . 2 3 2 . . . 2 Message Errors 4 | . . 1 2 1 . . . . Matter Fused 2 | . . . . 1 . . . 1 Data Loss (major) 1 | . . . 1 . . . . . Misfires 1 | . . . . . . . . 1 Weapon Failures 1 | . . 1 . . . . . . Overload Shots . | . . . . . . . . . Overflow Damage 266 | . 175 27 . . 27 . . 37 Projectiles 37 | . . . . . . . . 37 Explosions 27 | . . 27 . . . . . . Melee 202 | . 175 . . . 27 . . . Knockbacks . | . . . . . . . . . Impact . | . . . . . . . . . Kinetic . | . . . . . . . . . Secondary . | . . . . . . . . . Self-Inflicted Damage 204 | 10 . . . 38 156 . . . Shots 4 | 1 . . . 1 2 . . . Rammed 2 | . 1 . . . . . . 1 Targets Rammed 2 | . 1 . . . . . . 1 Kicked . | . . . . . . . . . Crushed . | . . . . . . . . . Highest Temperature 402 | 12 153 16 . . 269 . . 402 Average Temperature 91 | 12 53 10 . . 106 . . 139 Received Heat Transfer 662 | . 222 20 . . 297 . . 123 Effects 2 | . . . . . 1 . . 1 Energy Bleed 2 | . . . . . 1 . . 1 Siege Activations . | . . . . . . . . . Martial Activations . | . . . . . . . . . Shielding Activations . | . . . . . . . . . Robots Disrupted . | . . . . . . . . . Combat Hostiles . | . . . . . . . . . Robots Corrupted 4 | . 2 . . . 2 . . . Combat Hostiles 2 | . . . . . 2 . . . Parts Fried 5 | . 1 . . . 4 . . . Impact Corruptions 7 | . 6 . . . 1 . . . Robots Melted . | . . . . . . . . . Combat Hostiles . | . . . . . . . . . Parts Melted 3 | . 2 . . . . . . 1 Heat Transferred 1949 | 50 962 . . . 187 . . 750 Parts Sabotaged . | . . . . . . . . . Parts Stolen . | . . . . . . . . . Parts Stripped . | . . . . . . . . . Power Chain Reactions 2 | 1 . . . . 1 . . . Alert | -11 -10 -10 -10 -9 -8 -7 -7 -7 ------- Run | Yrd Mat Min Exi Min Mat Fac Was Fac Maximum Alert Level 1 | . . . . . 1 . . . Low Security (%) 98 | 100 100 100 . 100 90 100 100 100 Level 1 1 | . . . . . 9 . . . Level 2 . | . . . . . . . . . Level 3 . | . . . . . . . . . Level 4 . | . . . . . . . . . Level 5 . | . . . . . . . . . High Security . | . . . . . . . . . Max Security . | . . . . . . . . . Peak Influence 243 | 5 142 81 . 87 243 102 1 190 Initial 102 | . . . . . 18 102 1 . Average 43 | 1 50 10 . 68 35 55 . 87 Influence Increases 1328 | 30 430 113 . 87 330 2 . 336 Destroy 0b10 Robot/C 740 | . 260 60 . 60 180 . . 180 Destroy 0b10 Robot/NC 85 | 30 35 5 . . . . . 15 Destroy Leader 152 | . 48 10 . 10 50 . . 34 Successful Hack 9 | . 9 . . . . . . . Disable Machine 75 | . 15 . . . 30 . . 30 Destroy Structure 162 | . 3 38 . 17 40 2 . 62 Lose Combat Pursuer 105 | . 60 . . . 30 . . 15 Influence Decreases 1244 | 30 430 113 . 40 150 225 4 252 Entered New Map 157 | . . . . . 29 125 3 . Time Decay 905 | 30 400 91 . 40 81 100 1 162 Lost Part 182 | . 30 22 . . 40 . . 90 Squads Dispatched 6 | . 2 . . . 3 . . 1 Investigation 1 | . . . . . 1 . . . Extermination 1 | . . . . . . . . 1 Reinforcement 4 | . 2 . . . 2 . . . Assault . | . . . . . . . . . Garrison . | . . . . . . . . . Intercept . | . . . . . . . . . Searches Triggered . | . . . . . . . . . Construction Impeded . | . . . . . . . . . Haulers Reinforced . | . . . . . . . . . Active Scanning Responses . | . . . . . . . . . Cargo Convoy Interrupts . | . . . . . . . . . Stealth | -11 -10 -10 -10 -9 -8 -7 -7 -7 --------- Run | Yrd Mat Min Exi Min Mat Fac Was Fac Distress Signals 5 | . 3 . . . 1 . . 1 Communications Jammed . | . . . . . . . . . Distress Signals . | . . . . . . . . . Times Spotted 84 | . 23 15 . 2 16 . 6 22 Peak Tracking Total 12 | . 5 9 . 2 12 . 6 11 Tactical Retreats 5 | . 3 . . . 1 . . 1 Traps | -11 -10 -10 -10 -9 -8 -7 -7 -7 ------- Run | Yrd Mat Min Exi Min Mat Fac Was Fac Traps Triggered 3 | . 1 . . . 1 1 . . Indirectly . | . . . . . . . . . Trap Hack Attempts . | . . . . . . . . . Triggered . | . . . . . . . . . Disarmed . | . . . . . . . . . Reprogrammed . | . . . . . . . . . Reused . | . . . . . . . . . Traps Extracted . | . . . . . . . . . Installed . | . . . . . . . . . Triggered . | . . . . . . . . . Machines | -11 -10 -10 -10 -9 -8 -7 -7 -7 ---------- Run | Yrd Mat Min Exi Min Mat Fac Was Fac Machines Disabled 5 | . 1 . . . 2 . . 2 Max in Single Turn 2 | . 1 . . . 2 . . 1 Machines Repaired . | . . . . . . . . . Machines Dismantled . | . . . . . . . . . Machines Sabotaged . | . . . . . . . . . Overloaded Fab Kills . | . . . . . . . . . Hacking | -11 -10 -10 -10 -9 -8 -7 -7 -7 --------- Run | Yrd Mat Min Exi Min Mat Fac Was Fac Machines Accessed 6 | . 3 . 1 . 1 1 . . Terminals 5 | . 3 . . . 1 1 . . Fabricators . | . . . . . . . . . Repair Stations . | . . . . . . . . . Recycling Units . | . . . . . . . . . Scanalyzers . | . . . . . . . . . Garrison Access . | . . . . . . . . . Total Hacks 12 | . 7 . 1 . 2 2 . . Successful 4 | . 2 . 1 . 1 . . . Failed 8 | . 5 . . . 1 2 . . Catastrophic 2 | . 2 . . . . . . . Database Lockouts . | . . . . . . . . . Manual 12 | . 7 . 1 . 2 2 . . Terminals 11 | . 7 . . . 2 2 . . Fabricators . | . . . . . . . . . Repair Stations . | . . . . . . . . . Recycling Units . | . . . . . . . . . Scanalyzers . | . . . . . . . . . Garrison Access . | . . . . . . . . . Terminal Hacks 1 | . . . 1 . . . . . Proto ID Catalog 1 | . . . 1 . . . . . Fabricator Hacks . | . . . . . . . . . Repair Station Hacks . | . . . . . . . . . Recycling Unit Hacks . | . . . . . . . . . Scanalyzer . | . . . . . . . . . Garrison Access Hacks . | . . . . . . . . . Unauthorized Hacks 3 | . 2 . . . 1 . . . Terminals 3 | . 2 . . . 1 . . . Botnet 3 | . 2 . . . 1 . . . Fabricators . | . . . . . . . . . Repair Stations . | . . . . . . . . . Recycling Units . | . . . . . . . . . Scanalyzers . | . . . . . . . . . Garrison Access . | . . . . . . . . . Data Cores Recovered . | . . . . . . . . . Used . | . . . . . . . . . Hacking Detections 3 | . 2 . . . . 1 . . Full Trace Events . | . . . . . . . . . Feedback Events . | . . . . . . . . . Feedback Blocked . | . . . . . . . . . Robot Schematics Acquired . | . . . . . . . . . Robots Built . | . . . . . . . . . Authchips . | . . . . . . . . . Time . | . . . . . . . . . Total Robot Build Rating . | . . . . . . . . . Part Schematics Acquired . | . . . . . . . . . Parts Built . | . . . . . . . . . Authchips . | . . . . . . . . . Time . | . . . . . . . . . Total Part Build Rating . | . . . . . . . . . Part Studies Acquired . | . . . . . . . . . Parts Repaired . | . . . . . . . . . Time . | . . . . . . . . . Parts Recycled . | . . . . . . . . . Recycled Matter . | . . . . . . . . . Retrieved Matter . | . . . . . . . . . Retrieved Components . | . . . . . . . . . Parts Scanalyzed . | . . . . . . . . . Part Schematics Acquired . | . . . . . . . . . Parts Damaged . | . . . . . . . . . Bothacking | -11 -10 -10 -10 -9 -8 -7 -7 -7 ------------ Run | Yrd Mat Min Exi Min Mat Fac Was Fac Used RIF Installer . | . . . . . . . . . Robots Hacked . | . . . . . . . . . Non-combat . | . . . . . . . . . Combat . | . . . . . . . . . Robot Hacks Applied . | . . . . . . . . . Relay Couplers Released . | . . . . . . . . . Fabnet Peak Effective % . | . . . . . . . . . Robots Rewired . | . . . . . . . . . Allies Hacked . | . . . . . . . . . Hacks Repelled . | . . . . . . . . . Allies | -11 -10 -10 -10 -9 -8 -7 -7 -7 -------- Run | Yrd Mat Min Exi Min Mat Fac Was Fac Total Allies 2 | . . 2 . . . . . . Largest Group 2 | . . 2 . . . . . . Highest-Rated Group 45 | . . 45 . . . . . . Highest-Rated Ally 31 | . . 31 . . . . . . Total Orders . | . . . . . . . . . Ally Attacks 7 | . . 7 . . . . . . Total Damage 84 | . . 84 . . . . . . Kills 1 | . . 1 . . . . . . Allies Corrupted . | . . . . . . . . . Allies Melted 1 | . . 1 . . . . . . Intel | -11 -10 -10 -10 -9 -8 -7 -7 -7 ------- Run | Yrd Mat Min Exi Min Mat Fac Was Fac Active Infowar (turns) 1951 | 47 432 476 224 61 465 205 41 . Terrain 210 | . . . . . . 169 41 . Seismic 1741 | 47 432 476 224 61 465 36 . . Robot Analysis Total . | . . . . . . . . . Derelict Logs Recovered 1 | . . 1 . . . . . . Drone Launches . | . . . . . . . . . Drone Recoveries . | . . . . . . . . . Exploration | -11 -10 -10 -10 -9 -8 -7 -7 -7 ------------- Run | Yrd Mat Min Exi Min Mat Fac Was Fac Turns Passed 3971 | 258 1571 619 224 86 466 206 65 476 Spaces Moved 2546 | 124 863 466 235 76 266 135 76 305 Core 184 | 5 . 2 . . 9 . 43 125 Treads 1174 | 119 863 192 . . . . . . Legs 536 | . . . . . 194 135 33 174 Wheels 646 | . . 272 235 76 63 . . . Hover . | . . . . . . . . . Flight 6 | . . . . . . . . 6 Fastest Speed 50 | 50 160 95 95 95 95 127 50 50 Average Speed 134 | 155 160 122 95 95 129 127 86 129 Slowest Speed 350 | 160 240 350 95 95 350 130 250 260 Overloaded Moves . | . . . . . . . . . Propulsion Burnouts . | . . . . . . . . . Robots Hopped . | . . . . . . . . . Potential Cave-ins . | . . . . . . . . . Cave-ins Triggered . | . . . . . . . . . Exploration Rate (%) 42 | 7 98 87 61 22 26 2 70 10 Regions Visited 8 Branch Regions 3 Pre-discovered Areas . | . . . . . . . . . Known Exits Taken . | . . . . . . . . . Unknown Exits Taken 6 | 1 1 1 1 1 1 . . . Scrap Searched . | . . . . . . . . . Spaces Dug 5 | . 2 . . . 1 2 . . Terrain Destroyed 217 | 5 2 57 . 17 43 2 . 91 Melee 5 | . 2 . . . 1 2 . . Projectile 3 | . . . . . . . . 3 AOE 209 | 5 . 57 . 17 42 . . 88 Terrain Rammed . | . . . . . . . . . Walls Destroyed . | . . . . . . . . . Machines Disabled . | . . . . . . . . . Actions | -11 -10 -10 -10 -9 -8 -7 -7 -7 --------- Run | Yrd Mat Min Exi Min Mat Fac Was Fac Total 2827 | 152 951 491 236 87 334 159 75 342 Wait 62 | . 16 10 . 8 24 . . 4 Move 2539 | 123 862 465 234 75 265 135 75 305 Hop . | . . . . . . . . . Pick Up 23 | 4 7 1 1 1 4 5 . . Fast Attach 20 | 7 3 . . . 5 1 . 4 Attach 16 | . 1 3 . . 5 4 . 3 Detach 3 | . 3 . . . . . . . Swap 6 | . 2 1 . 1 . 2 . . Drop 9 | 1 2 . 1 . . 5 . . Fire 124 | 17 44 11 . 2 25 . . 25 Melee 23 | . 10 . . . 6 7 . . Ram 1 | . . . . . . . . 1 Kick . | . . . . . . . . . Crush 1 | . 1 . . . . . . . Escape Stasis . | . . . . . . . . . Rewire . | . . . . . . . . . Trap . | . . . . . . . . . Miscellaneous . | . . . . . . . . . Route ------- -11/Scrapyard -10/Materials (discovered 4 exits: [*Mat x3] / [*Min]) -10/Mines (discovered 2 exits: *Exi / [*Sub]) -10/Exiles -9/Mines -8/Materials -7/Factory -7/Waste -7/Factory History --------- Turn | Location | Event 24 | -11/Scrapyard | Discovered new exit (range 13) 259 | -11/Scrapyard | Entered Materials 317 | -10/Materials | Build established: Mutant 581 | -10/Materials | Discovered new exit (range 16) 626 | -10/Materials | Discovered new exit (range 15) 665 | -10/Materials | Discovered new exit (range 14) 1286 | -10/Materials | Discovered new exit (range 14) 1830 | -10/Materials | Entered Mines 1915 | -10/Mines | Met a Derelict bent on vengeance 2011 | -10/Mines | Learned 4 Materials zone layouts 2162 | -10/Mines | Assembled infested the area 2167 | -10/Mines | Assisted by a Guerilla fighting off Assembled 2319 | -10/Mines | Discovered new exit (range 10) 2440 | -10/Mines | Core integrity fell below 50% 2445 | -10/Mines | Deemed a non-threat by the Exiles lab entrance 2445 | -10/Mines | Discovered new exit (range 5) 2449 | -10/Mines | Entered Exiles 2473 | -10/Exiles | Met 8R-AWN 2489 | -10/Exiles | Met EX-HEX 2517 | -10/Exiles | Met EX-BIN 2531 | -10/Exiles | Aligned with FarCom system 2532 | -10/Exiles | Given EX-Vault access code 2558 | -10/Exiles | Opened EX-Vault 2565 | -10/Exiles | Found Superbattery 2591 | -10/Exiles | Warned to stay clear of 0b10 Research branches 2620 | -10/Exiles | Met EX-DEC 2666 | -10/Exiles | Discovered new exit (range 10) 2673 | -10/Exiles | Left Exiles lab with Superbattery 2673 | -10/Exiles | Entered Mines 2743 | -9/Mines | Found a Scrap Suit stashed away for nefarious purposes 2745 | -9/Mines | Found Scrap Suit 2752 | -9/Mines | Discovered new exit (range 9) 2759 | -9/Mines | Entered Materials 2759 | -8/Materials | Evolved 4 slots: Utility x2, Weapon x2 2885 | -8/Materials | Lost 3 parts (1n2w) 3202 | -8/Materials | Destroyed 7 combat bots 3205 | -8/Materials | Discovered new exit (range 15) 3225 | -8/Materials | Entered Factory 3225 | -7/Factory | Evolved 2 slots: Propulsion x2 3431 | -7/Factory | Sucked down chute 3431 | -7/Factory | Entered Waste 3442 | -7/Waste | Spotted C-40 Crusher 3443 | -7/Waste | Spotted C-40 Crusher 3443 | -7/Waste | Spotted C-40 Crusher 3463 | -7/Waste | Spotted C-40 Crusher 3463 | -7/Waste | Crushed by Compactor (1 part destroyed, 1 dropped) 3470 | -7/Waste | Crushed by Compactor (1 part destroyed, 2 dropped) 3472 | -7/Waste | Crushed by Compactor (1 part destroyed, 2 dropped) 3473 | -7/Waste | Crushed by Compactor (1 part destroyed, 1 dropped) 3475 | -7/Waste | Crushed by Compactor (1 part destroyed, 1 dropped) 3476 | -7/Waste | Spotted C-40 Crusher 3476 | -7/Waste | Spotted C-40 Crusher 3491 | -7/Waste | Discovered new exit (range 11) 3496 | -7/Waste | Entered Factory 3506 | -7/Factory | Lost 5 parts (2n1u2w) 3867 | -7/Factory | Build established: Skirmisher 3903 | -7/Factory | Core integrity fell below 50% 3944 | -7/Factory | Lost 8 parts (1p2n1u4w) 3964 | -7/Factory | Core integrity fell below 20% 3972 | -7/Factory | Destroyed by S-27 Virus with Autogun Last Messages --------------- Plasma Cannon. 03898_ System corrupted: Plasma Cannon misfires. 03898_ Destroyed Shock Rifle. 03900_ Plasma Cannon destroyed. 03900_ Acquired 30 matter. 03903_ Xenon Bombardment Thruster destroyed. 03904_ Acquired 16 matter. 03907_ Acquired 12 matter. 03909_ Lgt. EM Pulse Cannon destroyed. 03911_ U-05 Engineer lays Concrete. 03913_ Scrap Suit destroyed. 03914_ U-05 Engineer builds a Wall. 03915_ K-01 Serf collects debris. 03918_ U-05 Engineer lays Concrete. 03921_ System corrupted: Matter fused (-9). 03923_ K-01 Serf collects debris. 03936_ Acquired 33 matter. 03957_ Hacking Suite severed. 03957_ Construction Platform disabled. 03970_ S-27 Virus destroyed. Map ----- +----------------------------------------------------+ | ?????????????????????????????????????????????????? | | ?????????????????????????????????????????????????? | | ?????????????????????????????????????????????????? | | ?????????????????????????????????????????????????? | | ?????????????????????????????????????????????????? | | ?????????????????????????????????????????????????? | | ?????????????????????????????????????????????????? | | ?????????????????????????????????????????????????? | | ???????????????????????##############????????????? | | ???????????????????????# #????????????? | | ???????????????????????# #????????????? | | ???????????????????????# #??????????#?? | | ???????????????????????# % #?????""" #?? | | ???????????????????????# = # ??? """ #?? | | ???????????????????????# # """ """ #?? | | ???????????????????????# # #?? | | ???????????????????????# # """ #?? | | ???????????????????????# # """ "" #?? | | ???????????????????????# # """ """#?? | | ???????????????????????# # R???? | | ???????????????????????# # ! ?????? | | ???????????????????????#######+###### ???????? | | ?????????????????????????#= ####+########## | | ?????????????#############s* g | | ?????????? a s g | | ?????????? s @ T" | | ?????????? " | | ?????????? r s | | ??????????? s | | ???????????####+########## p | | ?????????????????????????# #############+# | | ?????????????????????????###########????# | | ????????????????????????????????????????# | | ????????????????????????????????????????# | | ????????????????????????????????????????# """ "" | | ????????????????????????????????????????# """" "" | | ????????????????????????????????????????# """" "" | | ????????????????????????????????????????# """" "" | | ????????????????????????????????????????# """" "" | | ????????????????????????????????????????# """" "" | | ????????????????????????????????????????# """" "" | | ????????????????????????????????????????# | | ????????????????????????????????????????# | | ????????????????????????????????????????########## | | ?????????????????????????????????????????????????? | | ?????????????????????????????????????????????????? | | ?????????????????????????????????????????????????? | | ?????????????????????????????????????????????????? | | ?????????????????????????????????????????????????? | | ?????????????????????????????????????????????????? | +----------------------------------------------------+ Best States ------------- Heat Dissipation 34 Energy Generation 16 Energy Capacity 290 Matter Stores 300 Matter Capacity 300 Sight Range 16 Terrain Scan Range 16 Terrain Scan Density 110 Armor Coverage 150 Evasion (%) 55 Targeting Accuracy 8 Recoil Reduction 2 Offensive Hacking 10 Item Schematics ----------------- None Robot Schematics ------------------ None Fabricated ------------ Nothing Repaired ---------- Nothing Studied --------- None Alien Tech Used ----------------- None Achievements -------------- None Challenges ------------ None Game ------ Seed HardcellBladeCoupler Manual? 0 Play Time 00:23:29 Cumulative 118.7 hours Start 2026.07.12 @ 22:27:51 End 2026.07.12 @ 22:50:49 Sessions 1 Manual Loads 0 Difficulty Rogue Special Mode None Game No. 254 Rogue 254 Adventurer 0 Explorer 0 Win Type - Total 0 Types 0/0/0/0/0/0/0/0/0/0 Lore% 51 Gallery% 51 Achievement% 41 Wizard Run 0 Options --------- Layout 1 ASCII 0 Keyboard 1 Movement Arrows Keybinds 0 Fullscreen 2 Font 24/Smallcaps Map View 50x35 Zoom Use 0% Tactical HUD 1 Map Filters NONE Filters NONE Steam 1 RUN: e8d3e48a-5df5-49d1-958b-e287f9e4c671